[Event "Caplin Hastings Masters 2023-24"]
[Site "Hastings"]
[Date "2024.01.04"]
[Round "8.7"]
[White "Gasanov, Eldar"]
[Black "Vestby-Ellingsen, Mads"]
[Result "1-0"]
[ECO "D06"]
[WhiteElo "2487"]
[BlackElo "2329"]
[Annotator "TA"]
[PlyCount "119"]
[EventDate "2023.12.18"]
[EventType "swiss"]
[EventCountry "ENG"]
[SourceTitle "playchess.com"]
[Source "ChessBase"]
[SourceQuality "1"]
[TimeControl "40/6000+30:3000+30"]

{[%evp 14,119,39,35,42,57,45,28,35,39,61,52,47,51,95,82,99,79,84,96,93,81,128,127,131,84,115,120,114,106,103,78,68,50,73,53,54,55,56,63,55,52,47,54,53,39,43,45,52,41,39,39,78,24,96,98,113,53,52,62,79,46,48,54,53,52,70,70,70,76,105,52,105,53,105,53,177,172,235,258,295,295,295,260,277,254,193,193,1810,1775,1430,1377,2693,2508,5904,1889,2729,2172,12830,9583,5908,2571,12839,12839,12843,12844,29984,12843]} 1. d4 {[%emt 0:00:22]} d5 {[%emt 0:00:20]} 2. c4 {[%emt 0:00:25]} c5 {[%emt 0:00:22]} 3. Nf3 {[%emt 0:04:41]} cxd4 {[%emt 0:00:48]} 4. cxd5 {[%emt 0:00:55]} Nf6 {[%emt 0:03:07]} 5. Qxd4 {[%emt 0:02:30]} Qxd5 {[%emt 0:00:22]} 6. Nc3 {[%emt 0:02:05]} Qxd4 {[%emt 0:00:15]} 7. Nxd4 {[%emt 0:00:04]} a6 {[%emt 0:02:49]} 8. g3 {[%emt 0:04:25]} Bd7 {[%emt 0:07:08] D06: Queen's Gambit: Symmetrical and Baltic Defences.} 9. Bg2 {[%emt 0:03:41]} e5 {[%emt 0:01:29]} 10. Nb3 {[%emt 0:06:40]} Bc6 {[%emt 0:00:16] White has an edge.} 11. O-O {[%emt 0:01:37][%cal Bh1f1,Bf1d1,Bd1d5][%mdl 32]} Bxg2 {[%emt 0:02:42]} 12. Kxg2 {[%emt 0:00:58]} Nbd7 {[%emt 0:00:30]} 13. Rd1 {[%emt 0:02:28]} O-O-O {[%emt 0:18:37]} 14. Be3 {[%emt 0:07:08]} Be7 {[%emt 0:02:45]} 15. Rac1 {[%emt 0:09:18]} Kb8 {[%emt 0:00:12]} 16. Nd5 {[%emt 0:00:20]} Nxd5 {[%emt 0:02:05]} 17. Rxd5 {[%emt 0:02:36]} h6 {[%emt 0:16:30] [#]} ({Better is} 17... Rhe8) 18. Na5 $146 {[%emt 0:09:54]} ({Predecessor:} 18. Rc2 Rhe8 19. Rcd2 Kc8 20. Na5 Bb4 21. Rc2+ Kb8 22. Nc4 f6 23. Rd3 Nf8 24. Rb3 {1-0 Duzhakov,I (2347)-Shefer,A (2178) Voronezh op-A 15th 2011 (5)}) 18... Rhe8 {[%emt 0:07:32]} 19. a3 {[%emt 0:20:44]} (19. Rd3 $142 {Threatens to win with Rb3.} Bb4 20. Nxb7 Kxb7 21. Rb3) 19... f6 {[%emt 0:05:58]} 20. Rd3 $1 {[%emt 0:01:30] White is much more active.} Nf8 {[%emt 0:04:58]} 21. Rb3 {[%emt 0:02:08]} Rd7 {[%emt 0:00:11]} 22. Rc6 {[%emt 0:01:13]} Ka8 {[%emt 0:01:10][%cal Bb8a8,Ba8b7,Bb7c7][%mdl 32]} 23. Nc4 {[%emt 0:02:54] And now Nb6+ would win.} bxc6 {[%emt 0:04:32]} 24. Nb6+ {[%emt 0:00:20]} Kb7 {[%emt 0:00:07]} 25. Nxd7+ {[%emt 0:00:06]} Kc7 {[%emt 0:00:26]} 26. Nxf8 {[%emt 0:00:58]} Bxf8 $14 {[%emt 0:03:42][%mdl 4096] Endgame KRB-KRB} 27. Bb6+ {[%emt 0:00:52]} Kc8 {[%emt 0:01:29]} 28. Ba5 {[%emt 0:01:28]} Re6 {[%emt 0:00:36]} 29. Rd3 {[%emt 0:11:03] Black must now prevent Rd8+.} Be7 {[%emt 0:03:55] Repels Rd8+} 30. e4 {[%emt 0:00:18]} c5 {[%emt 0:07:45]} 31. Kf3 {[%emt 0:03:38]} h5 {[%emt 0:06:00]} 32. Ke3 {[%emt 0:01:26]} Rc6 {[%emt 0:01:16]} 33. Rd5 {[%emt 0:01:17]} Bd6 {[%emt 0:02:21]} (33... c4 $11) 34. f4 $16 {[%emt 0:02:09][%cal Bf2f4,Bf4f5][%mdl 32]} Kd7 {[%emt 0:00:08]} 35. Bc3 {[%emt 0:02:00]} (35. fxe5 $16 fxe5 36. Kd3) 35... Ke6 $14 {[%emt 0:00:07]} 36. f5+ $1 {[%emt 0:01:09]} Ke7 {[%emt 0:00:19]} 37. Ba5 {[%emt 0:00:32]} Rc8 {[%emt 0:03:01]} 38. Kd3 {[%emt 0:01:02]} Rb8 {[%emt 0:01:19]} 39. Bc3 {[%emt 0:00:36]} Kd7 {[%emt 0:02:18][%cal Og7g6]} 40. Kc4 {[%emt 0:00:41]} Kc6 {[%emt 0:00:16]} 41. Rd2 {[%emt 0:04:46]} Be7 {[%emt 0:04:11]} 42. b3 {[%emt 0:08:53]} (42. g4 $16) 42... Rc8 {[%emt 0:01:55] [#]} (42... g6 $14) 43. Rd3 {[%emt 0:04:39]} (43. g4 $1 $16) 43... Rb8 {[%emt 0:01:11] [#]} ({Black should play} 43... g6 $14) 44. Be1 {[%emt 0:02:06]} ({White should try} 44. g4 $1 $16 {[%cal Rg4h5]}) 44... Bd6 {[%emt 0:00:46] This costs Black the game.} (44... g6 $14) 45. Bf2 $18 {[%emt 0:02:54]} Be7 {[%emt 0:00:46]} (45... Rg8 $142 46. Rd5 g6) 46. Rd5 {[%emt 0:01:25]} Rb5 {[%emt 0:00:11]} 47. h3 {[%emt 0:01:47][%cal Bh2h3,Bh3g4,Bg4g5,Bg5g6][%mdl 32]} Bd6 {[%emt 0:00:23]} 48. g4 {[%emt 0:01:22]} hxg4 {[%emt 0:03:34]} 49. hxg4 {[%emt 0:00:04]} Be7 {[%emt 0:11:59]} 50. g5 {[%emt 0:02:35]} a5 $2 {[%emt 0:03:09]} (50... Bd6 51. Be3 Be7) 51. g6 {[%emt 0:02:59]} Rb8 {[%emt 0:04:04]} 52. Bxc5 {[%emt 0:00:30]} Bd8 {[%emt 0:00:05]} 53. Bf8 {[%emt 0:01:27]} Ra8 {[%emt 0:01:01]} 54. Rd6+ {[%emt 0:02:05]} Kc7 {[%emt 0:00:18]} 55. Re6 {[%emt 0:00:33]} Kd7 {[%emt 0:00:17]} 56. Bxg7 {[%emt 0:00:33]} Rc8+ {[%emt 0:00:09]} 57. Kd3 {[%emt 0:00:32]} ({Less strong is} 57. Kd5 Be7 58. b4 (58. Bxf6 $2 Rc5#) 58... axb4 59. Rxe7+ (59. Bxf6 $2 Rc5#) (59. axb4 Bxb4 $11) 59... Kxe7 60. axb4 Rd8+ 61. Kc5 Rc8+ 62. Kd5 Rd8+ 63. Kc6 Rc8+ 64. Kd5 $16) 57... Rb8 {[%emt 0:00:33]} 58. Bxf6 {[%emt 0:01:23]} Rxb3+ {[%emt 0:00:30]} 59. Kc4 {[%emt 0:00:15]} Re3 {[%emt 0:00:23]} 60. Bxd8 {[%emt 0:00:24] Weighted Error Value: White=0.10 (very precise) /Black=0.33} (60. g7 $142 Rg3 61. Bxe5 (61. Rxe5 Bxf6 62. Rd5+ Kc7 $14) 61... Rxg7 62. Bxg7 Be7 63. e5 Bxa3 64. Ra6 Kc8 65. f6) 1-0

[Event "Caplin Hastings Masters 2023-24"]
[Site "Hastings"]
[Date "2024.01.04"]
[Round "8.8"]
[White "Brown, Thomas"]
[Black "Lagarde, Maxime"]
[Result "0-1"]
[ECO "E24"]
[WhiteElo "2095"]
[BlackElo "2640"]
[Annotator "TA"]
[PlyCount "40"]
[EventDate "2023.12.18"]
[EventType "swiss"]
[EventCountry "ENG"]
[SourceTitle "playchess.com"]
[Source "ChessBase"]
[SourceQuality "1"]
[TimeControl "40/6000+30:3000+30"]

{[%evp 10,40,0,-21,-13,-36,-20,-1,0,-32,-6,-20,0,-42,-45,-82,-79,-73,-75,-94,-24,-225,-222,-215,-233,-222,-224,-260,-260,-244,-242,-842,-858]} 1. d4 {[%emt 0:04:10]} Nf6 {[%emt 0:00:05]} 2. c4 {[%emt 0:00:13]} e6 {[%emt 0:00:09]} 3. Nc3 {[%emt 0:00:05]} Bb4 {[%emt 0:00:03]} 4. a3 {[%emt 0:00:15]} Bxc3+ {[%emt 0:00:06]} 5. bxc3 {[%emt 0:00:04]} b6 {[%emt 0:00:50]} 6. f3 {[%emt 0:00:20]} Nc6 {[%emt 0:00:55] E24: Nimzo-Indian: Sämisch: Unusual Black 5th moves and 5...c5 sidelines.} 7. e4 {[%emt 0:00:50]} d6 {[%emt 0:00:13]} 8. Bd3 {[%emt 0:02:21]} Na5 {[%emt 0:05:59] The position is equal.} 9. Bg5 {[%emt 0:05:17]} h6 {[%emt 0:00:31]} 10. Bh4 {[%emt 0:00:08]} Ba6 {[%emt 0:04:34][%cal Og7g5]} 11. Qe2 {[%emt 0:04:25]} Qd7 {[%emt 0:14:23]} (11... c5 $5 {[%cal Rc5d4]}) 12. a4 {[%emt 0:15:39] [#]} O-O-O $146 {[%emt 0:04:09]} ({Predecessor:} 12... Qc6 13. d5 Qb7 14. Bxf6 gxf6 15. Rb1 Qc8 16. Nh3 Nb7 17. Nf4 h5 18. g4 hxg4 19. fxg4 {0-1 El Gindy,E (2431)-Aronian,L (2758) FIDE World Cup 2019 (1.2)}) 13. Bxf6 {[%emt 0:05:22]} gxf6 {[%emt 0:00:07]} 14. Nh3 {[%emt 0:00:18]} e5 {[%emt 0:03:34] Against Nf4} (14... h5 $17) 15. c5 $2 {[%emt 0:05:40] [#] This move loses the game for White.} Bxd3 $19 {[%emt 0:00:41]} 16. Qxd3 {[%emt 0:00:06]} dxc5 {[%emt 0:00:34]} ({Much less strong is} 16... bxc5 17. Qa6+ Nb7 18. Rb1 $18 (18. Qxa7 Qc6 $14)) 17. d5 {[%emt 0:05:57]} c4 {[%emt 0:01:44]} 18. Qc2 {[%emt 0:03:02]} Rhg8 {[%emt 0:00:46]} 19. Kf1 {[%emt 0:07:36]} Nb3 {[%emt 0:02:53]} 20. Nf2 $2 {[%emt 0:06:18] [#]} (20. Rd1) 20... Nxa1 {[%emt 0:00:15] Weighted Error Value: White=0.76/Black=0.14 (very precise)} 0-1

[Event "Caplin Hastings Masters 2023-24"]
[Site "Hastings"]
[Date "2024.01.04"]
[Round "8.9"]
[White "Boswell, Jacob Connor"]
[Black "Wadsworth, Matthew J"]
[Result "0-1"]
[ECO "B11"]
[WhiteElo "2235"]
[BlackElo "2448"]
[Annotator "RC"]
[PlyCount "74"]
[EventDate "2023.12.18"]
[EventType "swiss"]
[EventCountry "ENG"]
[SourceTitle "playchess.com"]
[Source "ChessBase"]
[SourceQuality "1"]
[TimeControl "40/6000+30:3000+30"]

1. e4 {[%emt 0:00:02]} c6 {[%emt 0:00:27]} 2. Nc3 {[%emt 0:00:23]} d5 {[%emt 0:00:09]} 3. Nf3 {[%emt 0:00:15]} Bg4 {[%emt 0:00:53]} 4. h3 {[%emt 0:00:20]} Bxf3 {[%emt 0:00:13]} 5. Qxf3 {[%emt 0:00:08]} e6 {[%emt 0:00:07]} 6. d3 {[%emt 0:00:44]} Nd7 {[%emt 0:03:56]} 7. Bd2 {[%emt 0:02:41]} Qb6 {[%emt 0:02:05]} 8. O-O-O {[%emt 0:03:12]} d4 {[%emt 0:01:27]} 9. Ne2 {[%emt 0:02:39]} a5 {[%emt 0:04:11]} 10. e5 {[%emt 0:13:13]} Bc5 {[%emt 0:05:07]} 11. c3 {[%emt 0:03:43]} Nxe5 {[%emt 0:06:02]} 12. Qg3 {[%emt 0:07:29]} Ng6 {[%emt 0:03:04]} 13. Nxd4 {[%emt 0:03:39]} Bxd4 {[%emt 0:03:28]} 14. cxd4 {[%emt 0:00:35]} Rd8 {[%emt 0:07:22]} 15. Be3 {[%emt 0:12:08]} Qb5 {[%emt 0:01:56]} 16. h4 {[%emt 0:11:45]} h5 {[%emt 0:02:19]} 17. Be2 {[%emt 0:07:46]} N8e7 {[%emt 0:03:36]} 18. Qf3 {[%emt 0:06:35]} Nf5 {[%emt 0:04:10]} 19. Qe4 {[%emt 0:00:23]} Qb4 {[%emt 0:08:41]} 20. a3 {[%emt 0:02:38]} Qb3 {[%emt 0:02:41]} 21. g4 {[%emt 0:05:10]} hxg4 {[%emt 0:01:03]} 22. h5 {[%emt 0:00:24]} Nge7 {[%emt 0:01:06]} 23. Bxg4 {[%emt 0:02:37]} Rd5 {[%emt 0:03:22]} 24. Qf4 {[%emt 0:01:30]} Rb5 {[%emt 0:01:52]} 25. Rd2 {[%emt 0:06:13]} Qa2 {[%emt 0:01:32]} 26. Rc2 {[%emt 0:01:17]} Nxe3 {[%emt 0:15:05]} 27. fxe3 {[%emt 0:00:40]} Qa1+ {[%emt 0:00:47]} 28. Kd2 {[%emt 0:00:02]} Qxh1 {[%emt 0:00:10]} 29. Qb8+ {[%emt 0:00:12]} Kd7 {[%emt 0:00:05]} 30. Qxh8 {[%emt 0:00:06]} Qg1 {[%emt 0:01:20]} 31. Qxg7 {[%emt 0:06:49]} f5 {[%emt 0:00:32]} 32. a4 {[%emt 0:00:49]} Rb3 {[%emt 0:02:32]} 33. h6 {[%emt 0:01:43]} fxg4 {[%emt 0:02:07]} 34. Qf7 {[%emt 0:04:05]} Qh2+ {[%emt 0:02:03]} 35. Kc1 {[%emt 0:00:32]} Qh1+ {[%emt 0:00:08]} 36. Kd2 {[%emt 0:00:07]} Qxh6 {[%emt 0:00:08]} 37. d5 {[%emt 0:01:26]} Qh2+ {[%emt 0:00:13]} 0-1

[Event "Caplin Hastings Masters 2023-24"]
[Site "Hastings"]
[Date "2024.01.04"]
[Round "8.10"]
[White "Willow, Jonah B"]
[Black "Juknis, Paulius"]
[Result "1-0"]
[ECO "B31"]
[WhiteElo "2427"]
[BlackElo "2148"]
[Annotator "RC"]
[PlyCount "76"]
[EventDate "2023.12.18"]
[EventType "swiss"]
[EventCountry "ENG"]
[SourceTitle "playchess.com"]
[Source "ChessBase"]
[SourceQuality "1"]
[TimeControl "40/6000+30:3000+30"]

1. e4 {[%emt 0:00:03]} c5 {[%emt 0:00:15]} 2. Nf3 {[%emt 0:00:05]} Nc6 {[%emt 0:00:12]} 3. Bb5 {[%emt 0:00:16]} g6 {[%emt 0:00:31]} 4. Bxc6 {[%emt 0:00:45]} dxc6 {[%emt 0:00:32]} 5. d3 {[%emt 0:00:13]} Bg7 {[%emt 0:00:21]} 6. h3 {[%emt 0:00:15]} Nf6 {[%emt 0:00:26]} 7. Nc3 {[%emt 0:00:24]} Nd7 {[%emt 0:00:43]} 8. Be3 {[%emt 0:01:14]} e5 {[%emt 0:01:53]} 9. Qd2 {[%emt 0:01:45]} h6 {[%emt 0:01:14]} 10. Nh2 {[%emt 0:01:45]} b6 {[%emt 0:07:53]} 11. O-O {[%emt 0:03:09]} Nf8 {[%emt 0:00:55]} 12. f4 {[%emt 0:00:16]} exf4 {[%emt 0:00:08]} 13. Rxf4 {[%emt 0:04:01]} Be6 {[%emt 0:03:06]} 14. Raf1 {[%emt 0:08:26]} g5 {[%emt 0:02:18]} 15. R4f2 {[%emt 0:01:17]} Qc7 {[%emt 0:00:22]} 16. a3 {[%emt 0:11:32]} a5 {[%emt 0:08:28]} 17. Nf3 {[%emt 0:03:13]} Rd8 {[%emt 0:22:58]} 18. Na4 {[%emt 0:16:22]} Nd7 {[%emt 0:03:53]} 19. Qe2 {[%emt 0:08:48]} Ne5 {[%emt 0:10:32]} 20. Nxe5 {[%emt 0:08:02]} Bxe5 {[%emt 0:00:09]} 21. Qh5 {[%emt 0:00:33]} Rd7 {[%emt 0:05:29]} 22. Kh1 {[%emt 0:09:33]} Rg8 {[%emt 0:08:43]} 23. Bd2 {[%emt 0:20:38]} Bd4 {[%emt 0:06:31]} 24. Re2 {[%emt 0:00:11]} c4 {[%emt 0:07:26]} 25. e5 {[%emt 0:02:12]} cxd3 {[%emt 0:03:15]} 26. cxd3 {[%emt 0:00:01]} g4 {[%emt 0:00:19]} 27. h4 {[%emt 0:01:43]} g3 {[%emt 0:01:30]} 28. Re4 {[%emt 0:01:01]} Bf2 {[%emt 0:03:37]} 29. Be3 {[%emt 0:01:38]} Rxd3 {[%emt 0:01:18]} 30. Bxf2 {[%emt 0:00:01]} gxf2 {[%emt 0:00:09]} 31. Rxf2 {[%emt 0:00:05]} Bd5 {[%emt 0:06:42]} 32. e6 {[%emt 0:02:02]} Rh3+ {[%emt 0:03:31]} 33. Kg1 {[%emt 0:00:02]} Qh2+ {[%emt 0:00:59]} 34. Kf1 {[%emt 0:00:01]} Rf8 {[%emt 0:00:16]} 35. Qxf7+ {[%emt 0:03:14]} Rxf7 {[%emt 0:00:03]} 36. exf7+ {[%emt 0:00:02]} Kd7 {[%emt 0:00:17]} 37. Re7+ {[%emt 0:02:01]} Kxe7 {[%emt 0:01:25]} 38. f8=Q+ {[%emt 0:00:05]} Ke6 {[%emt 0:00:00]} 1-0

[Event "Caplin Hastings Masters 2023-24"]
[Site "Hastings"]
[Date "2024.01.04"]
[Round "8.11"]
[White "Fischer, Daniel"]
[Black "Grutter, Tim"]
[Result "1-0"]
[ECO "C84"]
[WhiteElo "2341"]
[BlackElo "2342"]
[Annotator "RC"]
[PlyCount "84"]
[EventDate "2023.12.18"]
[EventType "swiss"]
[EventCountry "ENG"]
[SourceTitle "playchess.com"]
[Source "ChessBase"]
[SourceQuality "1"]
[TimeControl "40/6000+30:3000+30"]

1. e4 {[%emt 0:00:03]} e5 {[%emt 0:00:19]} 2. Nf3 {[%emt 0:00:05]} Nc6 {[%emt 0:00:05]} 3. Bb5 {[%emt 0:00:16]} a6 {[%emt 0:00:08]} 4. Ba4 {[%emt 0:00:04]} Nf6 {[%emt 0:00:04]} 5. O-O {[%emt 0:01:18]} d6 {[%emt 0:00:39]} 6. Re1 {[%emt 0:03:27]} Bd7 {[%emt 0:00:25]} 7. Bxc6 {[%emt 0:06:46]} Bxc6 {[%emt 0:02:34]} 8. Nc3 {[%emt 0:00:09]} Be7 {[%emt 0:16:06]} 9. d4 {[%emt 0:00:23]} O-O {[%emt 0:02:17]} 10. dxe5 {[%emt 0:06:33]} dxe5 {[%emt 0:00:29]} 11. Qxd8 {[%emt 0:01:08]} Raxd8 {[%emt 0:03:55]} 12. Nxe5 {[%emt 0:01:56]} Bxe4 {[%emt 0:01:24]} 13. Nxe4 {[%emt 0:04:39]} Nxe4 {[%emt 0:00:10]} 14. Nd3 {[%emt 0:02:01]} f5 {[%emt 0:03:38]} 15. f3 {[%emt 0:04:14]} Bc5+ {[%emt 0:01:53]} 16. Nxc5 {[%emt 0:06:14]} Nxc5 {[%emt 0:00:09]} 17. Bg5 {[%emt 0:00:52]} Rd5 {[%emt 0:10:29]} 18. Be7 {[%emt 0:06:18]} Re8 {[%emt 0:01:33]} 19. c4 {[%emt 0:00:10]} Kf7 {[%emt 0:00:32]} 20. cxd5 {[%emt 0:02:29]} Rxe7 {[%emt 0:00:05]} 21. Rxe7+ {[%emt 0:03:19]} Kxe7 {[%emt 0:00:05]} 22. Rd1 {[%emt 0:01:30]} Kd6 {[%emt 0:02:18]} 23. Kf2 {[%emt 0:02:26]} Na4 {[%emt 0:02:07]} 24. Kg3 {[%emt 0:15:15]} g6 {[%emt 0:09:25]} 25. h4 {[%emt 0:03:50]} b5 {[%emt 0:10:07]} 26. Rc1 {[%emt 0:07:40]} Nc5 {[%emt 0:02:07]} 27. b4 {[%emt 0:04:25]} Nd3 {[%emt 0:00:22]} 28. Rc6+ {[%emt 0:00:10]} Kxd5 {[%emt 0:00:22]} 29. Rxc7 {[%emt 0:00:10]} Nxb4 {[%emt 0:00:13]} 30. a3 {[%emt 0:00:23]} Nc6 {[%emt 0:00:15]} 31. Rxh7 {[%emt 0:01:08]} a5 {[%emt 0:00:13]} 32. Rb7 {[%emt 0:03:28]} Nd4 {[%emt 0:06:23]} 33. Rb6 {[%emt 0:03:58]} Kc5 {[%emt 0:00:46]} 34. Rxg6 {[%emt 0:01:27]} b4 {[%emt 0:00:06]} 35. axb4+ {[%emt 0:00:46]} axb4 {[%emt 0:00:05]} 36. Ra6 {[%emt 0:03:39]} b3 {[%emt 0:01:00]} 37. Ra1 {[%emt 0:04:02]} Ne2+ {[%emt 0:00:53]} 38. Kh2 {[%emt 0:06:46]} Nc3 {[%emt 0:00:07]} 39. h5 {[%emt 0:02:33]} b2 {[%emt 0:01:17]} 40. Re1 {[%emt 0:00:21]} Kc4 {[%emt 0:01:49]} 41. h6 {[%emt 0:51:34]} Ne2 {[%emt 0:51:50]} 42. Rb1 {[%emt 0:00:39]} Kd5 {[%emt 0:01:25]} 1-0

[Event "Caplin Hastings Masters 2023-24"]
[Site "Hastings"]
[Date "2024.01.04"]
[Round "8.12"]
[White "Hobson, Kenneth"]
[Black "Mikhalevski, Victor"]
[Result "0-1"]
[ECO "B40"]
[WhiteElo "2130"]
[BlackElo "2524"]
[Annotator "TA"]
[PlyCount "116"]
[EventDate "2023.12.18"]
[EventType "swiss"]
[EventCountry "ENG"]
[SourceTitle "playchess.com"]
[Source "ChessBase"]
[SourceQuality "1"]
[TimeControl "40/6000+30:3000+30"]

{[%evp 9,116,0,0,0,0,0,2,-4,-10,0,11,-10,0,-7,0,-16,0,-1,0,-22,-14,-31,-31,-31,-27,-30,-32,-28,-26,-51,-51,-51,-42,-39,-36,-43,-41,-32,0,-37,-31,-78,-67,-83,-37,-57,0,-60,-14,-68,-39,-41,-13,-28,-3,-2,-3,-1,0,0,0,0,0,0,0,0,-25,-10,0,-235,-77,-82,0,-248,-240,-203,-78,-87,-61,-58,-54,-66,0,-37,-17,-23,-21,-10,-5,-527,-567,-538,-486,-1896,-1796,-1683,-1681,-1748,-1333,-1008,-1000,-29985,-29986,-29989,-29990,-29991,-29991,-29991,-29992]} 1. e4 {[%emt 0:00:02]} c5 {[%emt 0:00:25]} 2. Nf3 {[%emt 0:00:24]} e6 {[%emt 0:00:11]} 3. b3 {[%emt 0:01:14]} Nc6 {[%emt 0:00:17]} 4. Bb2 {[%emt 0:01:06]} b6 {[%emt 0:00:16]} 5. g3 {[%emt 0:07:34]} Bb7 {[%emt 0:01:10]} 6. Bg2 {[%emt 0:00:11] B40: Sicilian: 2...e6, Unusual lines.} d5 {[%emt 0:00:15]} 7. exd5 {[%emt 0:02:22]} Qxd5 {[%emt 0:00:10]} 8. Nc3 {[%emt 0:05:23] The position is equal.} Qd7 {[%emt 0:00:07]} 9. O-O {[%emt 0:02:48]} Nf6 {[%emt 0:00:09] Dodges Ne4} 10. Re1 {[%emt 0:01:45][%cal Od2d4]} Be7 {[%emt 0:01:28] [#]} 11. d3 $146 {[%emt 0:03:00]} ({Predecessor:} 11. Ne5 Nxe5 12. Rxe5 Bxg2 13. Kxg2 Qc6+ 14. Qf3 Qxf3+ 15. Kxf3 Nd7 16. Re2 Bf6 17. Na4 {0-1 Vitinik,M-Shuraev,A (2395) Vladivostok op2 1995 (2)}) 11... O-O {[%emt 0:01:21]} 12. Ne4 {[%emt 0:02:50]} Nd4 {[%emt 0:03:33]} (12... Nxe4 {simplifies} 13. dxe4 Qc7 14. Qe2 Rfd8) 13. Ne5 {[%emt 0:09:59]} Qc7 {[%emt 0:00:32]} 14. f4 {[%emt 0:01:28]} (14. c3 $5 {[%cal Rc3d4]} Nf5 15. Nxf6+ Bxf6 16. Ng4 $11) 14... Rad8 {[%emt 0:01:15]} 15. Bxd4 {[%emt 0:05:11]} cxd4 {[%emt 0:02:53]} 16. Nxf6+ {[%emt 0:00:33]} Bxf6 {[%emt 0:00:42]} 17. Bxb7 {[%emt 0:04:55]} Qxb7 {[%emt 0:00:11]} 18. Qf3 {[%emt 0:01:58]} Qc7 {[%emt 0:10:23]} 19. Rac1 {[%emt 0:03:21]} Rd5 {[%emt 0:00:23][%cal Rf6e5]} 20. Ng4 {[%emt 0:11:00]} Be7 {[%emt 0:00:25]} 21. Re2 {[%emt 0:00:41]} b5 {[%emt 0:10:51]} 22. Qe4 {[%emt 0:06:12]} Rfd8 {[%emt 0:24:49]} 23. Rf1 {[%emt 0:02:53]} g6 {[%emt 0:05:26]} (23... h5 $5 {[%cal Rh5g4]} 24. Ne5 Bf6 $11) 24. Ne5 {[%emt 0:04:13][%cal Oe5f7]} Bf6 {[%emt 0:02:31]} 25. h4 {[%emt 0:03:43]} (25. a4 $15 {was preferrable.}) 25... Bg7 $17 {[%emt 0:01:12]} 26. Nf3 {[%emt 0:02:50]} Kf8 {[%emt 0:09:45]} (26... R8d6 $17 {...f5 would be deadly.} 27. Rg2 Rc6) 27. Rh2 {[%emt 0:03:34][%cal Oh4h5]} Rc5 {[%emt 0:01:45]} (27... h5 $15) 28. Rff2 {[%emt 0:01:37]} (28. h5 $11) 28... Qc6 {[%emt 0:00:20]} (28... h5 $15 {is superior.}) 29. Rd2 {[%emt 0:03:13]} ({White should try} 29. h5 $11) 29... Rc3 {[%emt 0:04:00] [#] And now ...Qxe4 would win.} 30. Rhf2 {[%emt 0:05:03]} Rd5 {[%emt 0:16:21]} 31. Ne5 {[%emt 0:02:30]} Rxe5 {[%emt 0:05:28]} 32. fxe5 {[%emt 0:00:49]} Qxe4 {[%emt 0:00:09]} 33. dxe4 {[%emt 0:00:05]} Rxg3+ $11 {[%emt 0:00:09][%mdl 4096] Endgame KRR-KRB} 34. Rg2 {[%emt 0:01:35]} Rh3 {[%emt 0:00:26]} 35. Rxd4 {[%emt 0:03:07]} Bxe5 {[%emt 0:00:32]} 36. Rd8+ {[%emt 0:01:21]} Kg7 {[%emt 0:01:52]} 37. Re2 {[%emt 0:03:07]} b4 {[%emt 0:01:36]} 38. Rd7 {[%emt 0:01:13]} Rxh4 {[%emt 0:00:29]} 39. Kg2 $2 {[%emt 0:01:31]} (39. Rf2 $11 {and White is okay.} Bf4 40. Rf3) 39... Rg4+ $2 {[%emt 0:01:50]} (39... h5 $19 {...Rh2+ is the strong threat.} 40. Rxa7 Rg4+ 41. Kh1 Rh4+ 42. Kg2 g5) 40. Kh1 $17 {[%emt 0:02:01]} Rh4+ $2 {[%emt 0:02:25]} (40... h5 $17) 41. Kg2 $1 $19 {[%emt 0:50:18]} g5 {[%emt 0:20:28] Threatens to win with ...Rh2+.} 42. Rxa7 {[%emt 0:00:00]} g4 {[%emt 0:00:04]} (42... h5 $19 {has better winning chances.} 43. Ra4 Bc3) 43. Ra5 $17 {[%emt 0:00:00]} Rh2+ {[%emt 0:01:12]} 44. Kf1 {[%emt 0:00:00]} Rh1+ {[%emt 0:00:03]} 45. Kg2 $1 {[%emt 0:00:00]} Rh2+ {[%emt 0:00:05]} 46. Kf1 {[%emt 0:00:00]} Rxe2 {[%emt 0:00:04]} 47. Kxe2 $15 {[%emt 0:00:00] KR-KB} Kf6 {[%emt 0:05:57]} 48. a4 $1 {[%emt 0:00:00]} bxa3 {[%emt 0:00:00] White must now prevent ...h5.} 49. Rxa3 $2 {[%emt 0:00:00][%mdl 8192] Loses the game.} (49. b4 $1 $11 {and White stays safe.}) 49... h5 $19 {[%emt 0:00:00][%cal Bh7h5,Bh5h4,Bh4h3][%mdl 32]} 50. Ra8 {[%emt 0:00:00] [#]} Kg5 $1 {[%emt 0:00:00] Hoping for ...Kf4.} 51. Rg8+ {[%emt 0:00:00]} (51. Ra7 $142 f5 52. exf5 exf5 53. Ra5) 51... Kf4 {[%emt 0:00:00]} 52. Rf8 {[%emt 0:00:00]} f5 {[%emt 0:00:00]} 53. exf5 {[%emt 0:00:00]} exf5 {[%emt 0:00:00][%cal Be6f5,Bf5f4][%mdl 32]} 54. Kf2 {[%emt 0:00:00]} h4 {[%emt 0:00:00] ( -> ...h3)} 55. Kg2 {[%emt 0:00:00]} h3+ {[%emt 0:00:00] Black mates.} 56. Kh2 {[%emt 0:00:00]} Ke4+ {[%emt 0:00:00]} 57. Kh1 {[%emt 0:00:00]} g3 {[%emt 0:00:00]} 58. Re8 {[%emt 0:00:00]} f4 {[%emt 0:00:00] Weighted Error Value: White=0.44/Black=0.18 (very precise)} 0-1